fUSD/lending_fUSD_20260525
["ID","MTS","AMOUNT","RATE_DAILY","PERIOD"]
[422937312,1779654643000,-1200.0,0.000144,5]
[422937339,1779654643000,-24057.13628778,0.00014833,2]
[422937311,1779654643000,-900.0,0.000143,5]
[422937334,1779654643000,-24057.13628778,0.00014822,2]
[422937340,1779654643000,-25000.0,0.00014838,3]
[422937388,1779654643000,-2288.20762094,0.000149,2]
[422937384,1779654643000,-25000.0,0.00014891,3]
[422937385,1779654643000,-500.0,0.00014899,2]
[422937387,1779654643000,-500.0,0.00014899,2]
[422937378,1779654643000,-7344.95122016,0.00014874,3]
[422937379,1779654643000,-24057.13628778,0.00014878,2]
[422937382,1779654643000,-11033.44801986,0.00014886,2]
[422937381,1779654643000,-4258.31005763,0.00014886,2]
[422937383,1779654643000,-24057.13628778,0.00014889,2]
[422937380,1779654643000,-25000.0,0.00014882,3]
[422937377,1779654643000,-11033.44801986,0.00014873,2]
[422937367,1779654643000,-4258.31005763,0.00014871,2]
[422937363,1779654643000,-25000.0,0.00014865,3]
[422937386,1779654643000,-500.0,0.00014899,2]
[422937370,1779654643000,-17655.04877984,0.00014874,3]
[422937365,1779654643000,-24057.13628778,0.00014867,2]
[422937341,1779654643000,-4258.31005763,0.00014843,2]
[422937336,1779654643000,-4258.31005763,0.00014829,2]
[422937342,1779654643000,-24057.13628778,0.00014844,2]
[422937348,1779654643000,-1437.51751837,0.00014856,2]
[422937346,1779654643000,-25000.0,0.00014847,3]
[422937344,1779654643000,-11033.44801986,0.00014845,2]
[422937356,1779654643000,-1100.0752671,0.00014857,2]
[422937355,1779654643000,-25000.0,0.00014856,3]
[422937358,1779654643000,-3158.23479053,0.00014857,2]
[422937359,1779654643000,-2668.33895779,0.00014859,2]
[422937361,1779654643000,-8365.10906207,0.00014859,2]
[422937351,1779654643000,-22619.61876941,0.00014856,2]
[422937413,1779654644000,-500.0,0.00014999,2]
[422937416,1779654644000,-383.17397143,0.00014999,2]
[422937414,1779654644000,-500.0,0.00014999,2]
[422937415,1779654644000,-500.0,0.00014999,2]
[422937417,1779654644000,-323.1363974,0.00014999,2]
[422937419,1779654644000,-467.50766195,0.00014999,2]
[422937418,1779654644000,-527.86387446,0.00014999,2]
[422937420,1779654644000,-177.25536336,0.00014999,2]
[422937421,1779654644000,-500.0,0.00014999,2]
[422937425,1779654644000,-500.0,0.00014999,2]
[422937424,1779654644000,-500.0,0.00014999,2]
[422937423,1779654644000,-500.0,0.00014999,2]
[422937426,1779654644000,-500.0,0.00014999,2]
[422937427,1779654644000,-500.0,0.00014999,2]
[422937429,1779654644000,-500.0,0.00014999,2]
[422937428,1779654644000,-500.0,0.00014999,2]
[422937431,1779654644000,-500.0,0.00014999,2]
[422937430,1779654644000,-500.0,0.00014999,2]
[422937411,1779654644000,-201.95814552,0.00014999,2]
[422937422,1779654644000,-500.0,0.00014999,2]
[422937412,1779654644000,-158.02292215,0.00014999,2]
[422937398,1779654644000,-800.60831617,0.00014918,2]
[422937406,1779654644000,-1647.01249174,0.0001499,2]
[422937389,1779654644000,-5800.0,0.000149,2]
[422937391,1779654644000,-25000.0,0.000149,3]
[422937390,1779654644000,-300.0,0.000149,5]
[422937393,1779654644000,-4258.31005763,0.000149,2]
[422937392,1779654644000,-24057.13628778,0.000149,2]
[422937394,1779654644000,-800.60831618,0.000149,2]
[422937395,1779654644000,-3677.1454397,0.000149,2]
[422937396,1779654644000,-1759.47429852,0.000149,2]
[422937433,1779654644000,-500.0,0.00014999,2]
[422937408,1779654644000,-1647.01249174,0.0001499,2]
[422937397,1779654644000,-3891.34011711,0.000149,2]
[422937404,1779654644000,-150.0,0.00014986,2]
[422937403,1779654644000,-150.0,0.00014986,2]
[422937399,1779654644000,-241.73459319,0.00014925,2]
[422937402,1779654644000,-150.0,0.00014986,2]
[422937401,1779654644000,-192.08,0.00014985,2]
[422937405,1779654644000,-293.48000024,0.00014986,2]
[422937409,1779654644000,-500.0,0.00014998,2]
[422937410,1779654644000,-500.0,0.00014999,2]
[422937407,1779654644000,-1647.01249174,0.0001499,2]
[422937400,1779654644000,-800.60831617,0.00014936,2]
[422937432,1779654644000,-500.0,0.00014999,2]
[422937450,1779654644000,-500.0,0.00014999,2]
[422937436,1779654644000,-500.0,0.00014999,2]
[422937463,1779654644000,-500.0,0.00014999,2]
[422937461,1779654644000,-500.0,0.00014999,2]
[422937465,1779654644000,-219.79,0.00014999,2]
[422937469,1779654644000,-300.0,0.00014999,2]
[422937470,1779654644000,-300.0,0.00014999,2]
[422937471,1779654644000,-300.0,0.00014999,2]
[422937474,1779654644000,-398.01,0.00015,2]
[422937472,1779654644000,-666.0,0.00014999,2]
[422937473,1779654644000,-9761676.47588847,0.00015,2]
[422937467,1779654644000,-666.0,0.00014999,2]
[422937475,1779654644000,-1808.80400951,0.00015,14]
[422937478,1779654644000,-474.50808334,0.00015,2]
[422937477,1779654644000,-87150.86850928,0.00015,2]
[422937479,1779654644000,-1136.24390472,0.00015,2]
[422937480,1779654644000,-595063.32037793,0.00015,2]
[422937484,1779654644000,-4142.59621236,0.00015,2]
[422937482,1779654644000,-7865.01404883,0.000149,2]
[422937483,1779654644000,-2845.48599146,0.000149,2]
[422937481,1779654644000,-322.94797957,0.000149,2]
[422937485,1779654644000,-791.87086115,0.00015,2]
[422937476,1779654644000,-9514192.13224261,0.00015,2]
[422937434,1779654644000,-500.0,0.00014999,2]
[422937459,1779654644000,-500.0,0.00014999,2]
[422937458,1779654644000,-500.0,0.00014999,2]
[422937438,1779654644000,-500.0,0.00014999,2]
[422937441,1779654644000,-500.0,0.00014999,2]
[422937437,1779654644000,-500.0,0.00014999,2]
[422937442,1779654644000,-500.0,0.00014999,2]
[422937439,1779654644000,-500.0,0.00014999,2]
[422937440,1779654644000,-500.0,0.00014999,2]
[422937444,1779654644000,-500.0,0.00014999,2]
[422937445,1779654644000,-500.0,0.00014999,2]
[422937443,1779654644000,-500.0,0.00014999,2]
[422937460,1779654644000,-500.0,0.00014999,2]
[422937447,1779654644000,-500.0,0.00014999,2]
[422937449,1779654644000,-500.0,0.00014999,2]
[422937448,1779654644000,-500.0,0.00014999,2]
[422937451,1779654644000,-500.0,0.00014999,2]
[422937453,1779654644000,-500.0,0.00014999,2]
[422937452,1779654644000,-500.0,0.00014999,2]
[422937455,1779654644000,-500.0,0.00014999,2]
[422937454,1779654644000,-500.0,0.00014999,2]
[422937456,1779654644000,-500.0,0.00014999,2]
[422937457,1779654644000,-500.0,0.00014999,2]
[422937446,1779654644000,-500.0,0.00014999,2]
[422937488,1779654646000,-4126.191,0.00014649,2]
[422937490,1779654646000,-502.0,0.00014649,2]
[422937489,1779654646000,-4735.5111988,0.00014649,2]
[422937495,1779654810000,162.76,7.838e-05,2]
[422937494,1779654810000,162.76,6.858e-05,2]
[422937649,1779655832000,-2351.0,0.00011735,2]
[422937641,1779655832000,-33247.65720469,0.00011179,2]
[422937635,1779655832000,-2000.0,0.00011012,2]
[422937639,1779655832000,-1852.42,0.00011042,2]
[422937637,1779655832000,-593.4,0.00011016,2]
[422937638,1779655832000,-3199.97,0.00011041,2]
[422937633,1779655832000,-165.9,0.00010925,2]
[422937632,1779655832000,-162.76,0.00010777,2]
[422937636,1779655832000,-150.0,0.00011016,2]
[422937634,1779655832000,-150.0,0.00010959,2]
[422937628,1779655832000,-1680.0,0.00010668,2]
[422937626,1779655832000,-438.37667117,9.953e-05,2]
[422937630,1779655832000,-420.0,0.00010668,2]
[422937622,1779655832000,-300.0,9.698e-05,2]
[422937624,1779655832000,-162.76,9.797e-05,2]
[422937620,1779655832000,-300.0,9.698e-05,2]
[422937610,1779655832000,-150.0,9e-05,2]
[422937612,1779655832000,-56.55333388,9.089e-05,2]
[422937614,1779655832000,-235.0,9.265e-05,2]
[422937613,1779655832000,-150.0,9.177e-05,2]
[422937611,1779655832000,-93.44666612,9.089e-05,2]
[422937609,1779655832000,-182.4458,8.939e-05,2]
[422937608,1779655832000,-215.34753388,8.919e-05,2]
[422937606,1779655832000,-162.76,8.817e-05,2]
[422937618,1779655832000,-1200.0,9.698e-05,2]
[422937616,1779655832000,-150.0,9.523e-05,2]
[422937650,1779655832000,-587.0,0.00011735,2]
[422937651,1779655832000,-162.76,0.00011756,2]
[422937607,1779655832000,-150.0,8.912e-05,2]
[422937643,1779655832000,-89745.37,0.00011189,2]
[422937678,1779655832000,-500.0,0.00013485,2]
[422937670,1779655832000,-1634.14,0.00013066,2]
[422937672,1779655832000,-500.0,0.00013211,2]
[422937674,1779655832000,-1732.32,0.00013297,2]
[422937676,1779655832000,-1634.14,0.0001337,2]
[422937667,1779655832000,-192.62242615,0.00013041,2]
[422937668,1779655832000,-307.37757385,0.00013041,2]
[422937640,1779655832000,-438.37667117,0.00011121,2]
[422937661,1779655832000,-1634.14,0.00012762,2]
[422937662,1779655832000,-304.28,0.00012779,2]
[422937659,1779655832000,-500.0,0.00012663,2]
[422937657,1779655832000,-500.0,0.00012389,2]
[422937654,1779655832000,-500.0,0.00012247,2]
[422937665,1779655832000,-213.93129968,0.00012937,2]
[422937660,1779655832000,-162.76,0.00012736,2]
[422937656,1779655832000,-2000.0,0.00012389,2]
[422937645,1779655832000,-304.28,0.00011359,2]
[422937653,1779655832000,-1634.14,0.00012154,2]
[422937652,1779655832000,-245.0,0.00012063,2]
[422937644,1779655832000,-186.34,0.00011221,2]
[422937648,1779655832000,-150.0,0.00011567,2]
[422937642,1779655832000,-1000.0,0.00011188,2]
[422937647,1779655832000,-200.0,0.0001153,2]
[422937664,1779655832000,-286.06870032,0.00012937,2]
[422937655,1779655832000,-225.49,0.00012253,2]
[422937658,1779655832000,-1634.14,0.00012458,2]
[422937663,1779655832000,-300.0,0.00012908,2]
[422937646,1779655832000,-1000.0,0.00011497,2]
[422937726,1779655833000,-166.66,0.00014247,2]
[422937733,1779655833000,-573.31946531,0.00014548,2]
[422937729,1779655833000,-160.0,0.000145,2]
[422937735,1779655833000,-500.0,0.00014548,2]
[422937734,1779655833000,-500.0,0.00014548,2]
[422937724,1779655833000,-729.7,0.00014198,2]
[422937727,1779655833000,-166.66,0.00014265,2]
[422937725,1779655833000,-304.28,0.00014199,2]
[422937723,1779655833000,-166.66,0.0001411,2]
[422937717,1779655833000,-500.0,0.00013889,2]
[422937736,1779655833000,-1149.97,0.00014548,2]
[422937728,1779655833000,-166.66,0.00014384,2]
[422937748,1779655833000,-151.0,0.00014646,2]
[422937731,1779655833000,-180.217813,0.000145,2]
[422937730,1779655833000,-170.108906,0.000145,2]
[422937737,1779655833000,-766.39428978,0.00014571,2]
[422937741,1779655833000,-634.037657,0.00014596,2]
[422937740,1779655833000,-397.018828,0.00014596,2]
[422937744,1779655833000,-161.712638,0.00014596,2]
[422937742,1779655833000,-163.923129,0.00014596,2]
[422937739,1779655833000,-160.0,0.00014596,2]
[422937738,1779655833000,-169.65393973,0.00014576,2]
[422937743,1779655833000,-160.0,0.00014596,2]
[422937749,1779655833000,-500.0,0.00014648,2]
[422937747,1779655833000,-1924.0,0.0001463,2]
[422937718,1779655833000,-729.7,0.00013889,2]
[422937732,1779655833000,-500.0,0.00014548,2]
[422937719,1779655833000,-1149.97,0.00013889,2]
[422937705,1779655833000,-500.0,0.00013887,2]
[422937720,1779655833000,-254841.18,0.0001389,2]
[422937745,1779655833000,-163.425276,0.00014596,2]
[422937685,1779655833000,-162.76,0.00013716,2]
[422937683,1779655833000,-1953.43874481,0.0001371,2]
[422937682,1779655833000,-200.0,0.00013699,2]
[422937687,1779655833000,-500.0,0.00013759,2]
[422937680,1779655833000,-166.66,0.00013699,2]
[422937689,1779655833000,-2000.0,0.00013765,2]
[422937691,1779655833000,-729.7,0.00013789,2]
[422937693,1779655833000,-80393.5352,0.0001379,2]
[422937695,1779655833000,-166.66,0.00013809,2]
[422937697,1779655833000,-166.66,0.00013836,2]
[422937700,1779655833000,-500.0,0.00013879,2]
[422937698,1779655833000,-626.30222911,0.00013873,2]
[422937702,1779655833000,-500.0,0.00013879,2]
[422937707,1779655833000,-500.0,0.00013887,2]
[422937709,1779655833000,-500.0,0.00013887,2]
[422937704,1779655833000,-156.21168621,0.00013887,2]
[422937706,1779655833000,-500.0,0.00013887,2]
[422937708,1779655833000,-335.45771402,0.00013887,2]
[422937710,1779655833000,-500.0,0.00013887,2]
[422937711,1779655833000,-500.0,0.00013887,2]
[422937721,1779655833000,-166.66,0.00013973,2]
[422937712,1779655833000,-500.0,0.00013887,2]
[422937722,1779655833000,-51611.66687975,0.0001399,2]
[422937713,1779655833000,-500.0,0.00013889,2]
[422937715,1779655833000,-500.0,0.00013889,2]
[422937714,1779655833000,-500.0,0.00013889,2]
[422937716,1779655833000,-500.0,0.00013889,2]
[422937746,1779655833000,-900.0,0.000146,5]
[422937770,1779655833000,-1149.97,0.00014648,2]
[422937750,1779655833000,-500.0,0.00014648,2]
[422937778,1779655833000,-623.711263,0.00014669,2]
[422937784,1779655833000,-166.66,0.00014721,2]
[422937786,1779655833000,-2800.0,0.000148,5]
[422937788,1779655833000,-579.99393528,0.00014893,2]
[422937787,1779655833000,-198.52175762,0.00014884,2]
[422937789,1779655833000,-729.7,0.00014893,2]
[422937791,1779655833000,-729.7,0.00014893,2]
[422937794,1779655833000,-729.7,0.00014893,2]
[422937790,1779655833000,-729.7,0.00014893,2]
[422937795,1779655833000,-231.1414624,0.00014893,2]
[422937785,1779655833000,-223.404962,0.00014742,2]
[422937792,1779655833000,-729.7,0.00014893,2]
[422937793,1779655833000,-729.7,0.00014893,2]
[422937806,1779655833000,-5326.7681983,0.00014894,2]
[422937798,1779655833000,-500.0,0.00014893,2]
[422937797,1779655833000,-323.78210019,0.00014893,2]
[422937803,1779655833000,-500.0,0.00014893,2]
[422937799,1779655833000,-515.22228438,0.00014893,2]
[422937800,1779655833000,-500.0,0.00014893,2]
[422937804,1779655833000,-500.0,0.00014893,2]
[422937805,1779655833000,-225.52897833,0.00014893,2]
[422937801,1779655833000,-500.0,0.00014893,2]
[422937802,1779655833000,-500.0,0.00014893,2]
[422937807,1779655833000,-29344.2291702,0.00014894,2]
[422937808,1779655833000,-369942.7362736,0.00014894,2]
[422937809,1779655833000,-82537.8612865,0.00014894,2]
[422937761,1779655833000,-500.0,0.00014648,2]
[422937779,1779655833000,-1087.422527,0.00014669,2]
[422937783,1779655833000,-1900.0,0.000147,5]
[422937796,1779655833000,-500.0,0.00014893,2]
[422937777,1779655833000,-160.0,0.00014669,2]
[422937776,1779655833000,-500.0,0.00014658,2]
[422937759,1779655833000,-500.0,0.00014648,2]
[422937753,1779655833000,-500.0,0.00014648,2]
[422937756,1779655833000,-500.0,0.00014648,2]
[422937754,1779655833000,-500.0,0.00014648,2]
[422937751,1779655833000,-500.0,0.00014648,2]
[422937757,1779655833000,-500.0,0.00014648,2]
[422937752,1779655833000,-500.0,0.00014648,2]
[422937755,1779655833000,-500.0,0.00014648,2]
[422937764,1779655833000,-500.0,0.00014648,2]
[422937763,1779655833000,-500.0,0.00014648,2]
[422937765,1779655833000,-500.0,0.00014648,2]
[422937760,1779655833000,-500.0,0.00014648,2]
[422937758,1779655833000,-500.0,0.00014648,2]
[422937766,1779655833000,-500.0,0.00014648,2]
[422937774,1779655833000,-1149.97,0.00014648,2]
[422937781,1779655833000,-200.484355,0.00014669,2]
[422937762,1779655833000,-500.0,0.00014648,2]
[422937780,1779655833000,-160.0,0.00014669,2]
[422937782,1779655833000,-240.968711,0.00014669,2]
[422937772,1779655833000,-1149.97,0.00014648,2]
[422937775,1779655833000,-1149.97,0.00014648,2]
[422937810,1779655833000,-170177.48133169,0.00014894,2]
[422937768,1779655833000,-500.0,0.00014648,2]
[422937769,1779655833000,-500.0,0.00014648,2]
[422937767,1779655833000,-500.0,0.00014648,2]
[422937771,1779655833000,-1149.97,0.00014648,2]
[422937773,1779655833000,-1149.97,0.00014648,2]
[422937812,1779655834000,-500.0,0.00014893,2]
[422937811,1779655834000,-500.0,0.00013887,2]
[422937813,1779655834000,-116969.17435591,0.00014894,2]
[422937822,1779655838000,-500.0,0.00013887,2]
[422937818,1779655838000,-500.0,0.00013887,2]
[422937817,1779655838000,-500.0,0.00013887,2]
[422937819,1779655838000,-27.1,0.00013887,2]
[422937821,1779655838000,-500.0,0.00013887,2]
[422937831,1779655838000,-458.60173676,0.00013887,2]
[422937826,1779655838000,-500.0,0.00013887,2]
[422937828,1779655838000,-500.0,0.00013887,2]
[422937827,1779655838000,-500.0,0.00013887,2]
[422937820,1779655838000,-472.9,0.00013887,2]
[422937825,1779655838000,-500.0,0.00013887,2]
[422937823,1779655838000,-500.0,0.00013887,2]
[422937829,1779655838000,-500.0,0.00013887,2]
[422937824,1779655838000,-500.0,0.00013887,2]
[422937830,1779655838000,-500.0,0.00013887,2]
[422937846,1779655842000,-111.56067157,0.00013887,2]
[422937843,1779655842000,-500.0,0.00013887,2]
[422937851,1779655842000,-500.0,0.00013887,2]
[422937850,1779655842000,-500.0,0.00013887,2]
[422937854,1779655842000,-500.0,0.00013887,2]
[422937841,1779655842000,-500.0,0.00013887,2]
[422937842,1779655842000,-500.0,0.00013887,2]
[422937839,1779655842000,-500.0,0.00013887,2]
[422937838,1779655842000,-65.3030969,0.00013887,2]
[422937836,1779655842000,-500.0,0.00013887,2]
[422937837,1779655842000,-434.6969031,0.00013887,2]
[422937835,1779655842000,-500.0,0.00013887,2]
[422937834,1779655842000,-500.0,0.00013887,2]
[422937833,1779655842000,-41.39826324,0.00013887,2]
[422937840,1779655842000,-500.0,0.00013887,2]
[422937853,1779655842000,-500.0,0.00013887,2]
[422937844,1779655842000,-61.08123306,0.00013887,2]
[422937845,1779655842000,-438.91876694,0.00013887,2]
[422937869,1779655842000,-390.31378116,0.00014894,2]
[422937865,1779655842000,-3750.25431286,0.00014894,2]
[422937860,1779655842000,-500.0,0.00013887,2]
[422937856,1779655842000,-500.0,0.00013887,2]
[422937864,1779655842000,-307.814804,0.00014894,2]
[422937863,1779655842000,-1386.35636678,0.00014894,2]
[422937861,1779655842000,-63660.75765819,0.00014894,2]
[422937862,1779655842000,-793.32427872,0.00014894,2]
[422937857,1779655842000,-500.0,0.00013887,2]
[422937859,1779655842000,-500.0,0.00013887,2]
[422937858,1779655842000,-500.0,0.00013887,2]
[422937855,1779655842000,-500.0,0.00013887,2]
[422937849,1779655842000,-500.0,0.00013887,2]
[422937848,1779655842000,-500.0,0.00013887,2]
[422937847,1779655842000,-388.43932843,0.00013887,2]
[422937891,1779655842000,-648.11332128,0.00014894,2]
[422937852,1779655842000,-500.0,0.00013887,2]
[422938037,1779655847000,-206.8167115,0.00013887,2]
[422938038,1779655847000,-98014.68764278,0.00014894,2]
[422938040,1779656048000,1854.209057,7.945e-05,2]
[422938045,1779656327000,175.59,6.594e-05,2]
[422938074,1779657031000,-413.72424268,0.00012568,2]
[422938069,1779657031000,-1596.43,0.00012544,2]
[422938071,1779657031000,-68.24540479,0.00012568,2]
[422938070,1779657031000,-184.98778867,0.00012556,2]
[422938072,1779657031000,-397.84647269,0.00012568,2]
[422938073,1779657031000,-1160.87387984,0.00012568,2]
[422938075,1779657031000,-192.27575732,0.00012594,2]
[422938086,1779657031000,-18408.4009937,0.0001262,2]
[422938085,1779657031000,-300.0,0.00012619,2]
[422938087,1779657031000,-47398.5544526,0.0001262,2]
[422938083,1779657031000,-240.47182557,0.00012619,2]
[422938081,1779657031000,-59.52817443,0.00012619,2]
[422938077,1779657031000,-108.50020019,0.00012594,2]
[422938088,1779657031000,-200.0,0.0001262,2]
[422938090,1779657031000,-3177.57,0.0001269,2]
[422938079,1779657031000,-1200.0,0.00012619,2]
[422938118,1779657031000,-150.0,0.00013488,2]
[422938109,1779657031000,-7819.18,0.00013217,2]
[422938111,1779657031000,-159.8,0.00013236,2]
[422938116,1779657031000,-150.0,0.00013488,2]
[422938103,1779657031000,-205.44686386,0.00013156,2]
[422938100,1779657031000,-500.0,0.00012933,2]
[422938106,1779657031000,-175.59,0.00013187,2]
[422938095,1779657031000,-1852.42,0.00012725,2]
[422938093,1779657031000,-150.0,0.00012693,2]
[422938091,1779657031000,-163.48,0.0001269,2]
[422938089,1779657031000,-205.44686386,0.00012625,2]
[422938097,1779657031000,-249.0,0.00012819,2]
[422938207,1779657032000,-500.0,0.00013786,2]
[422938217,1779657032000,-500.0,0.00013786,2]
[422938215,1779657032000,-216.555,0.00013786,2]
[422938205,1779657032000,-500.0,0.00013786,2]
[422938203,1779657032000,-432.37,0.00013786,2]
[422938193,1779657032000,-415.48850918,0.00013786,2]
[422938201,1779657032000,-500.0,0.00013786,2]
[422938191,1779657032000,-500.0,0.00013786,2]
[422938184,1779657032000,-500.0,0.00013785,2]
[422938221,1779657032000,-500.0,0.00013786,2]
[422938198,1779657032000,-500.0,0.00013786,2]
[422938187,1779657032000,-500.0,0.00013786,2]
[422938219,1779657032000,-500.0,0.00013786,2]
[422938229,1779657032000,-500.0,0.00013786,2]
[422938211,1779657032000,-524.77,0.00013786,2]
[422938209,1779657032000,-610.43,0.00013786,2]
[422938223,1779657032000,-500.0,0.00013786,2]
[422938225,1779657032000,-500.0,0.00013786,2]
[422938227,1779657032000,-500.0,0.00013786,2]
[422938231,1779657032000,-500.0,0.00013786,2]
[422938235,1779657032000,-500.0,0.00013786,2]
[422938233,1779657032000,-500.0,0.00013786,2]
[422938239,1779657032000,-500.0,0.00013786,2]
[422938237,1779657032000,-500.0,0.00013786,2]
[422938244,1779657032000,-500.0,0.00013786,2]
[422938194,1779657032000,-500.0,0.00013786,2]
[422938213,1779657032000,-3547.336,0.00013786,2]
[422938189,1779657032000,-500.0,0.00013786,2]
[422938124,1779657032000,-150.0,0.00013488,2]
[422938182,1779657032000,-150.0,0.00013781,2]
[422938246,1779657032000,-500.0,0.00013786,2]
[422938131,1779657032000,-150.0,0.00013488,2]
[422938139,1779657032000,-150.0,0.0001352,2]
[422938133,1779657032000,-150.0,0.00013488,2]
[422938136,1779657032000,-150.0,0.00013488,2]
[422938127,1779657032000,-150.0,0.00013488,2]
[422938121,1779657032000,-150.0,0.00013488,2]
[422938142,1779657032000,-150.0,0.00013549,2]
[422938145,1779657032000,-150.0,0.00013553,2]
[422938149,1779657032000,-150.0,0.00013618,2]
[422938153,1779657032000,-150.0,0.00013651,2]
[422938151,1779657032000,-150.0,0.00013638,2]
[422938196,1779657032000,-500.0,0.00013786,2]
[422938155,1779657032000,-150.0,0.00013675,2]
[422938157,1779657032000,-150.0,0.00013675,2]
[422938170,1779657032000,-166.66,0.00013699,2]
[422938174,1779657032000,-150.0,0.00013702,2]
[422938172,1779657032000,-700.0,0.000137,5]
[422938159,1779657032000,-150.0,0.00013683,2]
[422938165,1779657032000,-656.90939124,0.00013687,2]
[422938176,1779657032000,-150.0,0.00013716,2]
[422938163,1779657032000,-1758.09487032,0.00013686,2]
[422938161,1779657032000,-205.44686386,0.00013686,2]
[422938178,1779657032000,-150.0,0.00013748,2]
[422938166,1779657032000,-563.67200628,0.00013687,2]
[422938180,1779657032000,-198.52175762,0.00013777,2]
[422938168,1779657032000,-177.03911712,0.00013687,2]
[422938251,1779657032000,-500.0,0.00013786,2]
[422938147,1779657032000,-150.0,0.00013585,2]
[422938250,1779657032000,-500.0,0.00013786,2]
[422938321,1779657032000,-432.11036869,0.00013786,2]
[422938311,1779657032000,-500.0,0.00013786,2]
[422938317,1779657032000,-500.0,0.00013786,2]
[422938325,1779657032000,-500.0,0.00013786,2]
[422938323,1779657032000,-632.84840326,0.00013786,2]
[422938326,1779657032000,-632.84840326,0.00013786,2]
[422938330,1779657032000,-500.0,0.00013786,2]
[422938329,1779657032000,-632.84840326,0.00013786,2]
[422938332,1779657032000,-632.84840326,0.00013786,2]
[422938342,1779657032000,-632.84840326,0.00013786,2]
[422938334,1779657032000,-637.01241213,0.00013786,2]
[422938338,1779657032000,-632.84840326,0.00013786,2]
[422938336,1779657032000,-632.84840326,0.00013786,2]
[422938344,1779657032000,-632.84840326,0.00013786,2]
[422938340,1779657032000,-632.84840326,0.00013786,2]
[422938346,1779657032000,-632.84840326,0.00013786,2]
[422938348,1779657032000,-632.84840326,0.00013786,2]
[422938351,1779657032000,-632.84840326,0.00013786,2]
[422938355,1779657032000,-632.84840326,0.00013786,2]
[422938362,1779657032000,-632.84840326,0.00013786,2]
[422938356,1779657032000,-632.84840326,0.00013786,2]
[422938360,1779657032000,-632.84840326,0.00013786,2]
[422938367,1779657032000,-632.84840326,0.00013786,2]
[422938352,1779657032000,-632.84840326,0.00013786,2]
[422938358,1779657032000,-632.84840326,0.00013786,2]
[422938364,1779657032000,-632.84840326,0.00013786,2]
[422938242,1779657032000,-500.0,0.00013786,2]
[422938313,1779657032000,-557.87028483,0.00013786,2]
[422938319,1779657032000,-500.0,0.00013786,2]
[422938366,1779657032000,-632.84840326,0.00013786,2]
[422938305,1779657032000,-226.64747014,0.00013786,2]
[422938315,1779657032000,-500.0,0.00013786,2]
[422938248,1779657032000,-500.0,0.00013786,2]
[422938253,1779657032000,-500.0,0.00013786,2]
[422938256,1779657032000,-500.0,0.00013786,2]
[422938270,1779657032000,-766.65,0.00013786,2]
[422938267,1779657032000,-766.65,0.00013786,2]
[422938259,1779657032000,-766.65,0.00013786,2]
[422938261,1779657032000,-766.65,0.00013786,2]
[422938265,1779657032000,-766.65,0.00013786,2]
[422938257,1779657032000,-766.65,0.00013786,2]
[422938263,1779657032000,-766.65,0.00013786,2]
[422938275,1779657032000,-766.65,0.00013786,2]
[422938277,1779657032000,-766.65,0.00013786,2]
[422938273,1779657032000,-766.65,0.00013786,2]
[422938289,1779657032000,-500.0,0.00013786,2]
[422938307,1779657032000,-500.0,0.00013786,2]